bitfinex-derivatives/quotes_SOLF0:USTF0_20260204
["timestamp","ask_amount","ask_price","bid_price","bid_amount"]
[1770203751170,8.78621686,95.83,95.751,12.49142155]
[1770203752079,8.78621686,95.82,95.751,12.49142155]
[1770203752879,8.78621686,95.8,95.727,12.49627072]
[1770203753079,83.36,95.867,95.727,12.49627072]
[1770203753278,8.78621686,95.79,95.727,12.49627072]
[1770203754279,0.06594306,95.768,95.727,12.49627072]
[1770203756076,0.06594306,95.768,95.681,12.50155415]
[1770203756581,8.78621686,95.77,95.681,12.50155415]
[1770203756882,8.78621686,95.75,95.681,12.50155415]
[1770203757283,8.78621686,95.79,95.681,12.50155415]
[1770203759675,8.78621686,95.8,95.681,12.50155415]
[1770203759874,8.78621686,95.8,95.701,12.52725929]
[1770203760485,8.78621686,95.8,95.703,12.49859375]
[1770203760681,8.78621686,95.83,95.703,12.49859375]
[1770203760884,8.78621686,95.79,95.703,12.49859375]
[1770203761085,8.78621686,95.77,95.68,12.49859375]
[1770203761684,8.78621686,95.77,95.681,12.49859375]
[1770203762678,8.78621686,95.83,95.681,12.49859375]
[1770203762679,8.78621686,95.79,95.681,12.49859375]
[1770203762880,208.92,95.877,95.681,43.99859375]
[1770203763079,8.78621686,95.8,95.701,12.46978753]
[1770203763389,8.78621686,95.8,95.702,12.46978753]
[1770203764183,8.78621686,95.8,95.741,0.0672273]
[1770203764386,8.78621686,95.78,95.706,12.46576484]
[1770203764986,8.78621686,95.76,95.706,12.46576484]
[1770203765188,8.78621686,95.76,95.583,208.94]
[1770203765189,8.78621686,95.74,95.683,12.46576484]
[1770203765388,8.78621686,95.76,95.683,12.46576484]
[1770203765987,8.78621686,95.74,95.683,12.46576484]
[1770203766192,8.78621686,95.74,95.66,12.46576484]
[1770203766388,8.78621686,95.72,95.66,12.46576484]
[1770203766594,8.78621686,95.74,95.66,12.46576484]
[1770203767092,83.38,95.793,95.66,12.46576484]
[1770203767292,8.78621686,95.76,95.66,12.46576484]
[1770203767895,8.78621686,95.9,95.694,12.45770382]
[1770203768090,8.78621686,95.79,95.694,12.45770382]
[1770203768794,0.06747565,95.752,95.694,12.45770382]
[1770203769298,8.78621686,95.79,95.694,12.45770382]
[1770203769488,8.78621686,95.77,95.694,12.45770382]
[1770203769895,31.5,95.897,95.694,12.45770382]
[1770203770089,8.78621686,95.8,95.694,12.45770382]
[1770203770490,8.78621686,95.78,95.694,12.45770382]
[1770203770993,8.78621686,95.76,95.694,12.45770382]
[1770203771188,8.78621686,95.76,95.63,52.0]
[1770203771189,8.78621686,95.76,95.651,12.45812278]
[1770203771394,8.78621686,95.72,95.651,12.45812278]
[1770203771589,8.78621686,95.72,95.611,12.45812278]
[1770203772392,8.78621686,95.72,95.619,12.51750772]
[1770203772791,8.78621686,95.74,95.657,12.51750772]
[1770203774196,8.78621686,95.72,95.611,12.52124482]
[1770203774402,8.78621686,95.72,95.635,12.52124482]
[1770203775899,0.0659455,95.687,95.635,12.52124482]
[1770203776403,8.78621686,95.71,95.635,12.52124482]
[1770203778508,8.78621686,95.73,95.635,12.52124482]
[1770203778698,9.00418475,95.807,95.56,52.0]
[1770203778699,8.78621686,95.75,95.637,12.46405496]
[1770203778906,8.78621686,95.75,95.63,8.78621686]
[1770203778907,8.78621686,95.75,95.651,12.46405496]
[1770203779708,8.78621686,95.73,95.651,12.46405496]
[1770203782106,8.78621686,95.69,95.581,12.31755599]
[1770203783603,8.78621686,95.71,95.601,12.26350412]
[1770203784610,221.52,95.735,95.601,12.26350412]
[1770203784802,0.06621452,95.665,95.601,12.26350412]
[1770203785411,8.78621686,95.71,95.601,12.26350412]
[1770203785612,8.78621686,95.73,95.621,12.31342741]
[1770203787014,8.78621686,95.73,95.641,12.32680343]
[1770203787314,8.21083578,95.788,95.641,12.32680343]
[1770203787315,8.78621686,95.75,95.641,12.32680343]
[1770203790617,8.74168473,95.76,95.651,12.31628371]
[1770203791319,8.74168473,95.74,95.651,12.31628371]
[1770203791508,8.74168473,95.76,95.651,12.31628371]
[1770203791509,8.74168473,95.72,95.651,12.31628371]
[1770203792513,8.74168473,95.74,95.651,12.31628371]
[1770203795321,8.21788495,95.739,95.651,12.31628371]
[1770203795522,8.21788495,95.738,95.651,12.31628371]
[1770203795723,8.21788495,95.737,95.651,12.31628371]
[1770203795914,8.21788495,95.736,95.651,12.31628371]
[1770203796121,8.21788495,95.739,95.651,12.31628371]
[1770203796321,8.21788495,95.738,95.651,12.31628371]
[1770203796521,8.21788495,95.737,95.651,12.31628371]
[1770203796819,8.21788495,95.736,95.651,12.31628371]
[1770203797022,8.21788495,95.735,95.651,12.31628371]
[1770203797321,8.74168473,95.74,95.651,12.31628371]
[1770203797322,8.21788495,95.734,95.651,12.31628371]
[1770203797521,8.21788495,95.733,95.651,12.31628371]
[1770203797715,8.21788495,95.732,95.651,12.31628371]
[1770203797919,8.74168473,95.74,95.651,12.31628371]
[1770203798118,0.06644948,95.702,95.651,12.31628371]
[1770203799816,9.35181215,95.747,95.566,83.44]
[1770203799817,9.35181215,95.747,95.653,12.27300908]
[1770203800017,8.74168473,95.75,95.669,3.57782835]
[1770203800224,8.74168473,95.73,95.669,3.57782835]
[1770203800420,8.74168473,95.73,95.631,3.57782835]
[1770203800625,1.03658495,95.729,95.631,3.57782835]
[1770203801119,8.74168473,95.75,95.632,3.57782835]
[1770203801320,9.77826968,95.75,95.632,3.57782835]
[1770203801521,1.03658495,95.749,95.632,3.57782835]
[1770203802024,1.03658495,95.749,95.651,3.57782835]
[1770203802622,1.03658495,95.749,95.69,0.06673975]
[1770203802921,0.46949025,95.729,95.651,3.57782835]
[1770203803122,8.74168473,95.75,95.61,8.74168473]
[1770203803123,0.46949025,95.709,95.611,3.73364181]
[1770203803517,8.74168473,95.73,95.611,3.73364181]
[1770203803719,0.46949025,95.729,95.611,3.73364181]
[1770203803924,9.21117498,95.71,95.611,3.73364181]
[1770203804120,0.46949025,95.709,95.611,3.73364181]
[1770203805825,8.74168473,95.69,95.611,3.73364181]
[1770203806229,9.3184795,95.69,95.611,3.73364181]
[1770203806825,8.74168473,95.67,95.611,3.73364181]
[1770203807033,8.74168473,95.65,95.561,3.67998954]
[1770203807431,9.3184795,95.63,95.561,3.67998954]
[1770203808429,8.74168473,95.65,95.561,3.67998954]
[1770203809623,0.57268164,95.653,95.561,3.67998954]
[1770203809826,0.57268164,95.653,95.571,3.68204611]
[1770203812328,0.55200712,95.629,95.546,3.6918812]
[1770203813430,8.74168473,95.61,95.546,3.6918812]
[1770203813932,0.55200712,95.609,95.524,3.6918812]
[1770203815333,0.57897597,95.589,95.524,3.6918812]
[1770203815734,0.57897597,95.589,95.471,3.67839678]
[1770203816432,39.81969398,95.645,95.471,3.67839678]
[1770203816433,0.57685553,95.619,95.472,3.679457]
[1770203816636,8.74168473,95.61,95.511,3.679457]
[1770203817132,0.57685553,95.619,95.511,3.679457]
[1770203820234,8.74168473,95.63,95.531,3.78580086]
[1770203820938,0.5819364,95.629,95.531,3.78580086]
[1770203821340,0.5819364,95.599,95.482,3.78580086]
[1770203821636,0.5819364,95.599,95.491,3.78580086]
[1770203822429,0.70315568,95.622,95.511,3.78580086]
[1770203823332,0.70315568,95.609,95.511,3.78580086]
[1770203824735,0.70800172,95.589,95.511,3.78580086]
[1770203824938,8.74168473,95.61,95.511,3.78580086]
[1770203825135,0.70800172,95.609,95.511,3.78580086]
[1770203825336,8.74168473,95.63,95.521,3.78580086]
[1770203825544,0.70800172,95.633,95.541,3.78580086]
[1770203826040,8.74168473,95.65,95.541,3.78580086]
[1770203826740,0.72158108,95.649,95.541,3.78580086]
[1770203827143,0.72158108,95.649,95.542,3.78580086]
[1770203827441,0.72158108,95.677,95.581,3.78580086]
[1770203828842,0.06647202,95.639,95.581,3.78580086]
[1770203829340,0.72158108,95.677,95.581,3.78580086]
[1770203835846,0.72158108,95.677,95.591,3.78580086]
[1770203836046,0.70494847,95.669,95.591,3.78580086]
[1770203843045,0.7690557,95.649,95.541,3.74542524]
[1770203844649,0.78391033,95.629,95.541,3.74542524]
[1770203847754,9.54211644,95.61,95.541,3.74542524]
[1770203848356,0.81900194,95.609,95.541,3.74542524]
[1770203850052,8.74168473,95.62,95.541,3.74542524]
[1770203850253,0.81900194,95.632,95.541,3.74542524]
[1770203851156,8.76183882,95.64,95.541,3.74542524]
[1770203852857,8.76183882,95.66,95.561,3.74542524]
[1770203853157,0.81756036,95.689,95.581,3.74542524]
[1770203853353,0.81756036,95.688,95.581,3.74542524]
[1770203853659,0.81756036,95.669,95.581,3.74542524]
[1770203855252,0.7969594,95.688,95.581,3.74542524]
[1770203856258,221.36768171,95.707,95.601,3.74542524]
[1770203856457,0.80768171,95.707,95.601,3.74542524]
[1770203857554,0.80768171,95.707,95.602,3.74542524]
[1770203857759,0.80768171,95.707,95.621,3.74542524]
[1770203858257,0.86961504,95.753,95.661,3.74542524]
[1770203858455,0.86961504,95.739,95.661,3.74542524]
[1770203860056,9.63145386,95.76,95.661,3.74542524]
[1770203860451,0.82260369,95.759,95.661,3.74542524]
[1770203860649,8.76183882,95.74,95.661,3.74542524]
[1770203860850,0.82260369,95.719,95.621,3.74542524]
[1770203862757,0.82260369,95.719,95.581,3.74542524]
[1770203862961,0.81060413,95.679,95.581,3.74542524]
[1770203863659,8.76183882,95.66,95.581,3.74542524]
[1770203864658,0.81060413,95.679,95.581,3.74542524]
[1770203865261,8.76183882,95.66,95.581,3.74542524]
[1770203867757,0.81060413,95.679,95.581,3.74542524]
[1770203871261,0.943442,95.659,95.532,3.72320627]
[1770203871565,0.943442,95.639,95.541,3.72320627]
[1770203872968,8.76183882,95.62,95.541,3.72320627]
[1770203874361,0.943442,95.639,95.541,3.72320627]
[1770203874666,11.98195112,95.695,95.49,52.0]
[1770203874667,0.92646018,95.599,95.519,3.72320627]
[1770203878062,9.40699752,95.669,95.48,60.76183882]
[1770203878063,1.0541322,95.639,95.531,3.69898362]
[1770203879858,1.07958626,95.599,95.481,3.69898362]
[1770203880063,1.07958626,95.579,95.481,3.69898362]
[1770203880368,1.06852569,95.599,95.501,3.69898362]
[1770203880964,8.76183882,95.56,95.48,3.69898362]
[1770203881171,1.06852569,95.559,95.48,3.69898362]
[1770203885568,1.21748531,95.579,95.481,3.69898362]
[1770203889169,1.13298004,95.539,95.444,3.69898362]
[1770203889368,1.13298004,95.519,95.444,3.69898362]
[1770203891174,1.13298004,95.519,95.37,3.69898362]
[1770203891473,1.18351791,95.479,95.371,3.69898362]
[1770203891672,1.18351791,95.479,95.391,3.69898362]
[1770203891873,1.18351791,95.509,95.411,3.69898362]
[1770203892874,1.51112166,95.529,95.431,3.69898362]
[1770203894079,1.51112166,95.489,95.401,3.69898362]
[1770203894877,1.40963301,95.469,95.401,3.69898362]
[1770203897380,1.40963301,95.469,95.371,3.69898362]
[1770203897786,2.00225492,95.449,95.331,3.69898362]
[1770203898282,2.00225492,95.449,95.351,3.69898362]
[1770203903987,1.89040151,95.493,95.371,3.74165806]
[1770203904181,1.89040151,95.493,95.391,3.74165806]
[1770203904583,8.76183882,95.62,95.391,3.74165806]
[1770203904584,2.0107932,95.529,95.431,3.74165806]
[1770203905589,2.0107932,95.509,95.431,3.74165806]
[1770203906388,0.06601487,95.48,95.431,3.74165806]
[1770203907790,1.86635996,95.48,95.411,3.74165806]
[1770203907992,8.76183882,95.47,95.39,3.74165806]
[1770203909792,1.75522691,95.469,95.39,3.74165806]
[1770203911488,8.76183882,95.45,95.39,3.74165806]
[1770203911993,1.85989021,95.449,95.331,3.74165806]
[1770203912197,8.76183882,95.43,95.331,3.74165806]
[1770203912397,8.80116083,95.43,95.331,3.74165806]
[1770203912599,1.93203917,95.429,95.331,3.74165806]
[1770203913594,10.7332,95.41,95.331,3.74165806]
[1770203913797,1.93203917,95.409,95.331,3.74165806]
[1770203914894,1.96011415,95.433,95.331,3.74165806]
[1770203915999,1.96011415,95.455,95.341,3.74165806]
[1770203916801,1.8943402,95.439,95.341,3.74165806]
[1770203918000,1.8943402,95.469,95.361,3.74165806]
[1770203919400,10.6897872,95.41,95.311,3.74165806]
[1770203919602,1.88862637,95.41,95.311,3.74165806]
[1770203920492,1.95394883,95.432,95.311,3.74165806]
[1770203920802,1.95394883,95.432,95.331,3.74165806]
[1770203921497,8.80116083,95.45,95.331,3.74165806]
[1770203921695,1.95394883,95.453,95.351,3.74165806]
[1770203922907,1.99040834,95.474,95.371,3.74165806]
[1770203924094,1.99040834,95.469,95.371,3.74165806]
[1770203924304,8.80116083,95.47,95.371,3.74165806]
[1770203924600,1.92429259,95.489,95.371,3.74165806]
[1770203925702,1.92429259,95.489,95.372,3.74165806]
[1770203925902,10.72545342,95.53,95.392,3.74165806]
[1770203926106,10.72545342,95.53,95.411,3.74165806]
[1770203926107,1.92429259,95.53,95.411,3.74165806]
[1770203926401,1.92237683,95.519,95.411,3.74165806]
[1770203927104,0.06602627,95.475,95.411,3.74165806]
[1770203927608,1.92237683,95.509,95.411,3.74165806]
[1770203930302,1.92048337,95.545,95.422,3.74165806]
[1770203931106,1.91065267,95.539,95.422,3.74165806]
[1770203931304,1.91065267,95.519,95.422,3.74165806]
[1770203932207,8.80116083,95.53,95.422,3.74165806]
[1770203932711,1.93396331,95.539,95.422,3.74165806]
[1770203932907,8.80116083,95.55,95.441,3.6152856]
[1770203933210,1.93396331,95.549,95.441,3.6152856]
[1770203935607,1.93396331,95.549,95.442,3.6152856]
[1770203935812,8.80116083,95.57,95.442,3.6152856]
[1770203936012,1.93364918,95.569,95.442,3.6152856]
[1770203937908,83.64,95.622,95.441,31.5]
[1770203937909,1.92480026,95.589,95.461,3.672772]
[1770203939413,1.92480026,95.589,95.481,3.672772]
[1770203939805,1.91859355,95.612,95.501,3.672772]
[1770203940315,1.91859355,95.612,95.502,3.672772]
[1770203940615,1.91890585,95.639,95.522,3.672772]
[1770203940811,1.91890585,95.599,95.522,3.672772]
[1770203941517,8.80116083,95.58,95.522,3.672772]
[1770203941709,8.80116083,95.58,95.468,83.6]
[1770203941710,1.91890585,95.579,95.47,3.672772]
[1770203942919,1.96057276,95.559,95.47,3.672772]
[1770203943414,1.96057276,95.539,95.47,3.672772]
[1770203943619,1.96057276,95.539,95.421,3.672772]
[1770203943819,1.96057276,95.539,95.422,3.672772]
[1770203948319,8.80116083,95.54,95.422,3.672772]
[1770203949812,2.00019889,95.539,95.422,3.672772]
[1770203956424,2.07947282,95.509,95.424,3.672772]
[1770203959024,2.08624838,95.533,95.44,8.80116083]
[1770203959326,2.08624838,95.569,95.442,3.672772]
[1770203959627,2.08624838,95.549,95.442,3.672772]
[1770203960518,2.08624838,95.549,95.443,89.92]
[1770203960724,2.08624838,95.549,95.444,3.672772]
[1770203962126,2.08624838,95.549,95.445,3.59204094]
[1770203963326,95.5,95.596,95.41,8.80116083]
[1770203963327,2.08315008,95.569,95.462,3.59204094]
[1770203963531,2.08315008,95.569,95.465,3.59204094]
[1770203966537,2.08315008,95.569,95.471,3.59204094]
[1770203969036,2.08315008,95.569,95.366,178.0]
[1770203969037,2.08315008,95.569,95.481,3.59204094]
[1770203971438,2.08315008,95.569,95.482,3.59204094]
[1770203973638,2.03956574,95.539,95.441,3.59204094]
[1770203973841,2.03956574,95.539,95.462,3.59204094]
[1770203974141,2.03956574,95.578,95.481,3.59204094]
[1770203974440,2.06655685,95.569,95.481,3.59204094]
[1770203974639,2.06655685,95.567,95.481,3.59204094]
[1770203975136,2.06655685,95.567,95.451,3.59204094]
[1770203975436,2.06655685,95.549,95.451,3.59204094]
[1770203978236,2.11606625,95.548,95.451,3.59204094]
[1770203978838,2.1045409,95.546,95.451,3.59204094]
[1770203979039,2.1045409,95.529,95.451,3.59204094]
[1770203979238,2.1045409,95.529,95.431,3.59204094]
[1770203979542,2.1045409,95.527,95.431,3.59204094]
[1770203979741,2.1045409,95.525,95.431,3.59204094]
[1770203979934,2.1045409,95.524,95.431,3.59204094]
[1770203980135,2.1045409,95.522,95.431,3.59204094]
[1770203982743,8.77491704,95.55,95.451,3.59204094]
[1770203982744,1.99949118,95.549,95.451,3.59204094]
[1770203986645,1.99949118,95.549,95.49,0.06607174]
[1770203987348,1.99377662,95.539,95.432,3.59204094]
[1770203987746,1.99377662,95.539,95.441,3.59204094]
[1770203988544,2.03967391,95.559,95.461,3.59204094]
[1770203991351,2.03967391,95.559,95.481,3.88248734]
[1770203996656,2.05389034,95.58,95.501,3.88248734]
[1770203996856,2.05389034,95.609,95.501,3.88248734]
[1770203999158,2.00333925,95.589,95.501,3.88248734]
[1770204000056,2.00333925,95.569,95.501,3.88248734]
[1770204002156,2.01760216,95.589,95.501,3.88248734]
[1770204004662,2.03151039,95.648,95.571,3.65708252]
[1770204004963,2.03151039,95.689,95.571,3.65708252]
[1770204005167,2.03151039,95.689,95.562,91.26]
[1770204005168,2.03151039,95.687,95.591,3.65708252]
[1770204005367,2.03151039,95.679,95.591,3.65708252]
[1770204006557,83.56,95.72,95.562,91.26]
[1770204006558,1.76641463,95.701,95.611,3.65708252]
[1770204006758,1.81942709,95.738,95.641,3.65708252]
[1770204007063,1.76641463,95.759,95.641,3.65708252]
[1770204007064,1.76641463,95.759,95.661,3.65708252]
[1770204007460,1.76641463,95.778,95.681,3.65708252]
[1770204008063,1.76641463,95.769,95.681,3.65708252]
[1770204008357,1.76641463,95.749,95.661,3.65708252]
[1770204009767,1.68467717,95.729,95.661,3.65708252]
[1770204010063,1.68467717,95.749,95.661,3.65708252]
[1770204012168,1.92064378,95.729,95.64,3.65708252]
[1770204012564,10.71905175,95.74,95.641,3.65708252]
[1770204012764,1.94413471,95.739,95.641,3.65708252]
[1770204016770,1.84105297,95.719,95.641,3.65708252]
[1770204018777,1.86712587,95.709,95.621,3.65708252]
[1770204019179,1.86712587,95.732,95.641,3.65708252]
[1770204022583,1.82093021,95.754,95.661,3.64959954]
[1770204026582,148.04,95.785,95.661,3.64959954]
[1770204026583,1.76593143,95.739,95.661,3.64959954]
[1770204027484,1.76593143,95.78,95.681,3.64959954]
[1770204027688,1.76593143,95.78,95.701,3.64959954]
[1770204035091,1.81755982,95.828,95.721,3.64959954]
[1770204035288,1.68484977,95.849,95.741,3.64959954]
[1770204035993,1.68484977,95.849,95.761,3.64959954]
[1770204036382,1.53333164,95.839,95.761,3.64959954]
[1770204037291,1.53333164,95.869,95.771,3.64959954]
[1770204038497,1.64537299,95.849,95.771,3.64959954]
[1770204039399,1.64537299,95.849,95.751,3.64959954]
[1770204043395,1.59768733,95.881,95.751,3.64959954]
[1770204043600,1.59768733,95.869,95.751,3.64959954]
[1770204044402,1.59768733,95.869,95.771,3.64959954]
[1770204045299,1.59078131,95.849,95.771,3.64959954]
[1770204047102,1.81623179,95.889,95.771,3.64959954]
[1770204047303,1.58942975,95.895,95.811,3.64959954]
[1770204047607,1.58942975,95.879,95.811,3.64959954]
[1770204049904,1.58942975,95.879,95.771,3.64959954]
[1770204052400,1.41778453,95.898,95.791,3.72614815]
[1770204054695,1.4181434,95.928,95.831,3.72614815]
[1770204055104,1.4181434,95.947,95.831,3.72614815]
[1770204055500,1.4181434,95.947,95.841,3.72614815]
[1770204059505,1.4181434,95.947,95.851,3.69896387]
[1770204060304,1.4181434,95.947,95.861,3.69896387]
[1770204060508,1.42822341,95.978,95.861,3.69896387]
[1770204061213,1.42822341,95.978,95.881,3.69896387]
[1770204061407,12.55349824,96.035,95.901,3.69896387]
[1770204061408,1.42822341,96.001,95.901,3.69896387]
[1770204061807,1.42822341,95.999,95.901,3.69896387]
[1770204062008,1.42822341,96.038,95.921,3.69896387]
[1770204062209,1.42822341,96.029,95.921,3.69896387]
[1770204063116,1.3337187,96.009,95.921,3.69896387]
[1770204063710,10.06709242,96.05,95.941,3.69896387]
[1770204064406,1.36574605,96.059,95.961,3.69896387]
[1770204064605,8.73337372,96.04,95.961,3.69896387]
[1770204064805,1.36574605,96.019,95.921,3.69896387]
[1770204065512,1.36574605,95.999,95.921,3.69896387]
[1770204067409,1.4884988,96.019,95.921,3.69896387]
[1770204068018,1.4884988,95.999,95.921,3.69896387]
[1770204068819,10.19601912,96.02,95.921,3.69896387]
[1770204069118,1.4626454,96.019,95.921,3.69896387]
[1770204069317,1.4626454,96.035,95.931,3.69896387]
[1770204070217,1.43573009,96.084,95.951,3.69896387]
[1770204070414,1.43573009,96.049,95.951,3.69896387]
[1770204071616,1.43573009,96.049,95.961,3.69896387]
[1770204072118,8.73337372,96.07,95.961,3.69896387]
[1770204072119,1.43573009,96.069,95.961,3.69896387]
[1770204072315,1.3351295,96.049,95.961,3.69896387]
[1770204072516,1.3351295,96.029,95.961,3.69896387]
[1770204072714,8.73337372,96.01,95.931,3.69896387]
[1770204072912,1.3351295,95.989,95.911,3.69896387]
[1770204073713,1.3351295,96.01,95.911,3.69896387]
[1770204075515,1.29700815,95.999,95.911,3.69896387]
[1770204075710,1.29700815,96.02,95.911,3.69896387]
[1770204075911,1.29700815,96.02,95.931,3.69896387]
[1770204076112,1.29700815,96.039,95.931,3.69896387]
[1770204078216,0.96188615,96.029,95.931,3.69896387]
[1770204078423,0.96188615,96.009,95.931,3.69896387]
[1770204079425,0.96188615,96.028,95.931,3.69896387]
[1770204082420,1.0172305,96.009,95.931,3.69896387]
[1770204087122,1.0172305,96.009,95.91,8.73337372]
[1770204087123,1.05026281,95.989,95.911,3.81638441]
[1770204089527,8.73337372,96.0,95.911,3.81638441]
[1770204089931,9.73688906,96.0,95.911,3.81638441]
[1770204090433,0.97284392,95.999,95.911,3.81638441]
[1770204096535,0.96379658,95.989,95.911,3.81638441]
[1770204098828,9.74083655,96.03,95.921,3.81638441]
[1770204099230,1.04072377,96.029,95.941,3.81638441]
[1770204099632,1.04072377,96.047,95.941,3.81638441]
[1770204099834,1.04072377,96.046,95.941,3.81638441]
[1770204101334,0.9843404,96.044,95.941,3.81638441]
[1770204101534,8.70011278,96.05,95.941,3.81638441]
[1770204101535,0.9843404,96.042,95.941,3.81638441]
[1770204101837,0.9843404,96.04,95.941,3.81638441]
[1770204102036,8.70011278,96.05,95.941,3.81638441]
[1770204102037,0.9843404,96.038,95.941,3.81638441]
[1770204102237,0.9843404,96.029,95.941,3.81638441]
[1770204102636,0.94635609,96.027,95.941,3.81638441]
[1770204102932,8.70011278,96.03,95.941,3.81638441]
[1770204102933,0.94635609,96.025,95.941,3.81638441]
[1770204103128,0.94635609,96.023,95.941,3.81638441]
[1770204103330,0.94635609,96.021,95.941,3.81638441]
[1770204103536,83.2,96.052,95.918,3.81638441]
[1770204103537,0.94635609,95.989,95.918,3.81638441]
[1770204105238,8.14663592,95.988,95.918,3.81638441]
[1770204105433,8.14663592,95.987,95.918,3.81638441]
[1770204105639,1.03034447,95.985,95.918,3.81638441]
[1770204105840,8.14663592,95.984,95.918,3.81638441]
[1770204106036,8.14663592,95.983,95.918,3.81638441]
[1770204106239,8.14663592,95.982,95.918,3.81638441]
[1770204106438,8.14663592,95.981,95.918,3.81638441]
[1770204106741,8.14663592,95.98,95.918,3.81638441]
[1770204106932,8.14663592,95.979,95.918,3.81638441]
[1770204107134,8.14663592,95.978,95.918,3.81638441]
[1770204107339,1.03034447,95.985,95.918,3.81638441]
[1770204107534,8.41405478,95.984,95.918,3.81638441]
[1770204107732,8.70011278,96.01,95.918,3.81638441]
[1770204107931,8.41476892,96.009,95.931,3.81638441]
[1770204108131,8.41476892,96.008,95.931,3.81638441]
[1770204108331,8.41476892,96.007,95.931,3.81638441]
[1770204108536,1.05082311,96.012,95.931,3.81638441]
[1770204108537,8.41476892,96.006,95.931,3.81638441]
[1770204108736,8.41476892,96.005,95.931,3.81638441]
[1770204108935,8.41476892,96.004,95.931,3.81638441]
[1770204109140,8.41476892,96.003,95.931,3.81638441]
[1770204109348,1.02172115,96.029,95.931,3.81638441]
[1770204109542,1.02172115,96.027,95.931,3.81638441]
[1770204109743,1.02172115,96.025,95.931,3.81638441]
[1770204109938,1.02172115,96.023,95.931,3.81638441]
[1770204110142,1.02172115,96.021,95.931,3.81638441]
[1770204110339,1.0059043,96.019,95.931,3.81638441]
[1770204110543,9.42932349,96.018,95.931,3.81638441]
[1770204110744,8.42341919,96.017,95.931,3.81638441]
[1770204110941,1.0007964,96.015,95.931,3.81638441]
[1770204111143,1.0007964,96.013,95.931,3.81638441]
[1770204111343,8.42341919,96.012,95.931,3.81638441]
[1770204111647,1.0007964,96.01,95.931,3.81638441]
[1770204111944,1.0007964,96.008,95.931,3.81638441]
[1770204112246,1.0007964,96.006,95.931,3.81638441]
[1770204112447,8.42341919,96.005,95.931,3.81638441]
[1770204112648,8.42341919,96.004,95.931,3.81638441]
[1770204112850,8.42341919,96.003,95.931,3.81638441]
[1770204113144,9.42732145,96.002,95.931,3.81638441]
[1770204113349,8.42341919,96.001,95.931,3.81638441]
[1770204113540,8.42341919,96.0,95.931,3.81638441]
[1770204113745,8.42341919,95.999,95.931,3.81638441]
[1770204113942,8.42341919,95.998,95.931,3.81638441]
[1770204114150,8.42341919,95.997,95.931,3.81638441]
[1770204114351,8.42341919,95.996,95.931,3.81638441]
[1770204114548,8.42341919,95.995,95.931,3.81638441]
[1770204114745,1.00390226,96.002,95.931,3.81638441]
[1770204114942,1.01366953,96.0,95.931,3.81638441]
[1770204115144,8.41048758,95.999,95.931,3.81638441]
[1770204115453,8.41048758,95.998,95.931,3.81638441]
[1770204115655,1.01366953,96.0,95.931,3.81638441]
[1770204115656,8.41048758,95.997,95.931,3.81638441]
[1770204115852,8.41048758,95.996,95.931,3.81638441]
[1770204116051,8.70011278,96.03,95.931,3.81638441]
[1770204116052,1.01366953,95.994,95.931,3.81638441]
[1770204116250,8.41163887,95.993,95.931,3.81638441]
[1770204116455,8.41163887,95.992,95.931,3.81638441]
[1770204116754,8.41163887,95.991,95.931,3.81638441]
[1770204116950,1.01366953,95.994,95.931,3.81638441]
[1770204117151,8.41499455,95.993,95.931,3.81638441]
[1770204117353,8.41499455,95.992,95.931,3.81638441]
[1770204117549,1.01681145,96.014,95.931,3.81638441]
[1770204117756,1.01681145,96.012,95.931,3.81638441]
[1770204118057,1.01681145,96.012,95.941,3.8738239]
[1770204118457,1.02918955,96.039,95.941,3.8738239]
[1770204118757,1.02918955,96.019,95.941,3.8738239]
[1770204119054,1.02918955,96.017,95.941,3.8738239]
[1770204119249,8.42166325,96.016,95.941,3.8738239]
[1770204119556,1.02918955,96.034,95.951,3.8738239]
[1770204119752,1.02918955,96.034,95.961,3.8738239]
[1770204119753,8.42288338,96.033,95.961,3.8738239]
[1770204119947,1.02918955,96.052,95.961,3.8738239]
[1770204120148,8.42487233,96.051,95.961,3.8738239]
[1770204120351,8.42487233,96.05,95.961,3.8738239]
[1770204120552,8.42487233,96.049,95.961,3.8738239]
[1770204120753,0.9889891,96.047,95.961,3.8738239]
[1770204120953,0.9889891,96.045,95.961,3.8738239]
[1770204121159,0.9889891,96.043,95.961,3.8738239]
[1770204121349,8.70011278,96.04,95.961,3.8738239]
[1770204121555,0.9889891,96.038,95.961,3.8738239]
[1770204121858,0.9889891,96.036,95.961,3.8738239]
[1770204122054,0.9889891,96.034,95.942,3.8738239]
[1770204122258,8.70011278,96.04,95.942,3.8738239]
[1770204122259,1.01013299,96.031,95.942,3.8738239]
[1770204122556,1.01013299,96.028,95.942,3.8738239]
[1770204122862,1.01013299,96.026,95.942,3.8738239]
[1770204123161,9.47817531,96.029,95.942,3.8738239]
[1770204123162,1.01013299,96.024,95.942,3.8738239]
[1770204123356,1.01013299,96.022,95.942,3.8738239]
[1770204123661,1.01013299,96.009,95.942,3.8738239]
[1770204123862,1.01013299,96.007,95.911,3.8738239]
[1770204124058,1.01013299,96.005,95.911,3.8738239]
[1770204124262,1.01013299,96.003,95.911,3.8738239]